[Event "Late-Titled-Tuesday-Blitz-January-30-2024"]
[Site "Chess.com"]
[Date "2024.01.30"]
[Round "2"]
[White "jmpion"]
[Black "Kostukov_Alex"]
[Result "1-0"]
[WhiteElo "2531"]
[BlackElo "2298"]
[TimeControl "180+1"]
[EndTime "14:17:42 PST"]
[Termination "jmpion won on time"]

1. e4 {[%clk 0:03:00.9]} 1... c5 {[%clk 0:02:55.4]} 2. Nf3 {[%clk 0:03:00.6]}
2... g6 {[%clk 0:02:52.4]} 3. d4 {[%clk 0:03:00]} 3... cxd4 {[%clk 0:02:51.6]}
4. Nxd4 {[%clk 0:03:00.7]} 4... Bg7 {[%clk 0:02:50.2]} 5. c4 {[%clk 0:03:01]}
5... Nc6 {[%clk 0:02:48.8]} 6. Be3 {[%clk 0:02:57.3]} 6... Nf6 {[%clk
0:02:48.4]} 7. Nc3 {[%clk 0:02:56.5]} 7... Nxd4 {[%clk 0:02:45.6]} 8. Bxd4
{[%clk 0:02:52.8]} 8... Qa5 {[%clk 0:02:45]} 9. Be2 {[%clk 0:02:45.3]} 9... O-O
{[%clk 0:02:42.6]} 10. O-O {[%clk 0:02:43.7]} 10... d6 {[%clk 0:02:43]} 11. f4
{[%clk 0:02:35]} 11... Rd8 {[%clk 0:02:03.8]} 12. f5 {[%clk 0:02:07]} 12... Bd7
{[%clk 0:01:52.8]} 13. Qd3 {[%clk 0:01:49.7]} 13... Bc6 {[%clk 0:01:49.1]} 14.
Nd5 {[%clk 0:01:42.6]} 14... Bxd5 {[%clk 0:01:33.1]} 15. exd5 {[%clk 0:01:38.5]}
15... Nd7 {[%clk 0:01:30.5]} 16. fxg6 {[%clk 0:01:06.4]} 16... Bxd4+ {[%clk
0:01:21.6]} 17. Qxd4 {[%clk 0:01:06.5]} 17... hxg6 {[%clk 0:01:22]} 18. Kh1
{[%clk 0:01:01.1]} 18... Ne5 {[%clk 0:01:03.4]} 19. Rf4 {[%clk 0:00:50.4]} 19...
Qb6 {[%clk 0:00:43.9]} 20. Qd2 {[%clk 0:00:42.7]} 20... Kg7 {[%clk 0:00:42.7]}
21. Raf1 {[%clk 0:00:39.4]} 21... Rh8 {[%clk 0:00:40.8]} 22. Qc3 {[%clk
0:00:35.9]} 22... f6 {[%clk 0:00:40.4]} 23. b4 {[%clk 0:00:29.4]} 23... Rac8
{[%clk 0:00:36.1]} 24. Bg4 {[%clk 0:00:20.9]} 24... Rcf8 {[%clk 0:00:18.5]} 25.
Be6 {[%clk 0:00:18.4]} 25... Rh5 {[%clk 0:00:17.4]} 26. c5 {[%clk 0:00:16.7]}
26... Qc7 {[%clk 0:00:16]} 27. Qd4 {[%clk 0:00:12.4]} 27... Rfh8 {[%clk
0:00:12.8]} 28. h3 {[%clk 0:00:11.7]} 28... Rg5 {[%clk 0:00:11.7]} 29. Rc1
{[%clk 0:00:07]} 29... b6 {[%clk 0:00:10]} 30. c6 {[%clk 0:00:06.9]} 30... Rhh5
{[%clk 0:00:08.6]} 31. Re1 {[%clk 0:00:07]} 31... a5 {[%clk 0:00:07.4]} 32. bxa5
{[%clk 0:00:06.8]} 32... bxa5 {[%clk 0:00:07.6]} 33. Rb1 {[%clk 0:00:07.3]}
33... Rh8 {[%clk 0:00:05.3]} 34. Rb7 {[%clk 0:00:07.5]} 34... Qd8 {[%clk
0:00:04.8]} 35. Qa7 {[%clk 0:00:07.9]} 35... Re8 {[%clk 0:00:03]} 36. c7 {[%clk
0:00:08.1]} 1-0

[Event "Late-Titled-Tuesday-Blitz-January-30-2024"]
[Site "Chess.com"]
[Date "2024.01.30"]
[Round "2"]
[White "Kiborg95"]
[Black "Mazetovic"]
[Result "0-1"]
[WhiteElo "2850"]
[BlackElo "2600"]
[TimeControl "180+1"]
[EndTime "14:17:46 PST"]
[Termination "Mazetovic won by resignation"]

1. e4 {[%clk 0:02:52.4]} 1... c5 {[%clk 0:02:59.2]} 2. Nc3 {[%clk 0:02:52.2]}
2... Nc6 {[%clk 0:02:58.9]} 3. Nge2 {[%clk 0:02:52.3]} 3... g6 {[%clk
0:02:58.5]} 4. d4 {[%clk 0:02:52.8]} 4... cxd4 {[%clk 0:02:59.4]} 5. Nxd4 {[%clk
0:02:53.3]} 5... Bg7 {[%clk 0:03:00]} 6. Be3 {[%clk 0:02:53.7]} 6... Nf6 {[%clk
0:03:00]} 7. Bc4 {[%clk 0:02:54.4]} 7... Qa5 {[%clk 0:02:59.2]} 8. O-O {[%clk
0:02:52.1]} 8... O-O {[%clk 0:02:57.6]} 9. Bb3 {[%clk 0:02:52.6]} 9... d6 {[%clk
0:02:57.6]} 10. h3 {[%clk 0:02:52.2]} 10... Bd7 {[%clk 0:02:56.7]} 11. Re1
{[%clk 0:02:52.5]} 11... Rfc8 {[%clk 0:02:52.8]} 12. Nf3 {[%clk 0:02:50.5]}
12... Qh5 {[%clk 0:02:36.8]} 13. Ng5 {[%clk 0:02:43.9]} 13... Ne5 {[%clk
0:02:14.7]} 14. f4 {[%clk 0:02:12.1]} 14... Qxd1 {[%clk 0:02:09.9]} 15. Raxd1
{[%clk 0:02:11.3]} 15... Nc4 {[%clk 0:01:56.5]} 16. Bxc4 {[%clk 0:02:00.5]}
16... Rxc4 {[%clk 0:01:56]} 17. e5 {[%clk 0:02:01.1]} 17... Nh5 {[%clk
0:01:41.4]} 18. Nd5 {[%clk 0:02:01.1]} 18... e6 {[%clk 0:00:52.8]} 19. Ne7+
{[%clk 0:01:45.2]} 19... Kf8 {[%clk 0:00:52.3]} 20. exd6 {[%clk 0:01:45.5]}
20... h6 {[%clk 0:00:43.3]} 21. Nh7+ {[%clk 0:01:23.5]} 21... Ke8 {[%clk
0:00:41]} 22. c3 {[%clk 0:01:10.9]} 22... Nxf4 {[%clk 0:00:22.5]} 23. Rf1 {[%clk
0:01:10.1]} 23... g5 {[%clk 0:00:19.2]} 24. Kh2 {[%clk 0:00:56.2]} 24... Re4
{[%clk 0:00:18.4]} 25. Bd4 {[%clk 0:00:54]} 25... e5 {[%clk 0:00:18]} 26. Bf2
{[%clk 0:00:45.1]} 26... Re2 {[%clk 0:00:16.8]} 27. g3 {[%clk 0:00:34.1]} 27...
Nxh3 {[%clk 0:00:14.9]} 28. Kg2 {[%clk 0:00:31.1]} 28... Rxb2 {[%clk 0:00:11.7]}
29. Nd5 {[%clk 0:00:31.5]} 29... Nxf2 {[%clk 0:00:09.4]} 30. Rxf2 {[%clk
0:00:30.5]} 30... Rxf2+ {[%clk 0:00:09]} 31. Kxf2 {[%clk 0:00:31.4]} 31... Rc8
{[%clk 0:00:08.5]} 32. Nhf6+ {[%clk 0:00:21.5]} 32... Kd8 {[%clk 0:00:08.1]} 33.
Ke3 {[%clk 0:00:22]} 33... Be6 {[%clk 0:00:07.6]} 34. Ke4 {[%clk 0:00:21.6]}
34... Rc4+ {[%clk 0:00:07.5]} 35. Kxe5 {[%clk 0:00:20.6]} 35... Ra4 {[%clk
0:00:02.9]} 36. Rd4 {[%clk 0:00:17]} 36... Rxa2 {[%clk 0:00:02.9]} 37. Rc4
{[%clk 0:00:16.7]} 37... Re2+ {[%clk 0:00:03]} 38. Kd4 {[%clk 0:00:15.9]} 38...
Bxd5 {[%clk 0:00:03]} 39. Kxd5 {[%clk 0:00:16.2]} 39... Bxf6 {[%clk 0:00:03.1]}
40. Rb4 {[%clk 0:00:15.7]} 40... Re5+ {[%clk 0:00:03.6]} 41. Kc4 {[%clk
0:00:15.8]} 41... Re4+ {[%clk 0:00:04.2]} 42. Kb3 {[%clk 0:00:15.7]} 42... Rxb4+
{[%clk 0:00:04.9]} 0-1

[Event "Late-Titled-Tuesday-Blitz-January-30-2024"]
[Site "Chess.com"]
[Date "2024.01.30"]
[Round "2"]
[White "azikom"]
[Black "Balla_Tamas"]
[Result "1-0"]
[WhiteElo "2728"]
[BlackElo "2406"]
[TimeControl "180+1"]
[EndTime "14:17:46 PST"]
[Termination "azikom won on time"]

1. c4 {[%clk 0:02:59]} 1... c5 {[%clk 0:03:00.3]} 2. Nc3 {[%clk 0:02:59.1]} 2...
Nc6 {[%clk 0:03:00.9]} 3. g3 {[%clk 0:03:00]} 3... g6 {[%clk 0:03:00.8]} 4. Bg2
{[%clk 0:03:00.9]} 4... Bg7 {[%clk 0:03:01.6]} 5. h4 {[%clk 0:03:01.4]} 5... h6
{[%clk 0:03:00.6]} 6. d3 {[%clk 0:02:59.8]} 6... e6 {[%clk 0:03:00.9]} 7. h5
{[%clk 0:02:56.8]} 7... g5 {[%clk 0:03:00.4]} 8. f4 {[%clk 0:02:57.4]} 8... gxf4
{[%clk 0:02:55.2]} 9. Bxf4 {[%clk 0:02:58.3]} 9... d5 {[%clk 0:02:52.6]} 10.
cxd5 {[%clk 0:02:54.9]} 10... Bxc3+ {[%clk 0:02:26.4]} 11. bxc3 {[%clk
0:02:54.4]} 11... exd5 {[%clk 0:02:27.1]} 12. Qd2 {[%clk 0:02:47]} 12... Be6
{[%clk 0:02:21.6]} 13. Nf3 {[%clk 0:02:44.6]} 13... d4 {[%clk 0:02:14]} 14. Rb1
{[%clk 0:02:38.8]} 14... Nge7 {[%clk 0:02:07.3]} 15. c4 {[%clk 0:02:33.5]} 15...
Qd7 {[%clk 0:01:58.5]} 16. Bxh6 {[%clk 0:02:28.5]} 16... Nf5 {[%clk 0:01:54.6]}
17. Bf4 {[%clk 0:02:27]} 17... O-O-O {[%clk 0:01:53.2]} 18. Ng5 {[%clk
0:02:21.7]} 18... Rhe8 {[%clk 0:01:43.1]} 19. Ne4 {[%clk 0:02:16.1]} 19... Qe7
{[%clk 0:01:35.1]} 20. h6 {[%clk 0:02:11.9]} 20... Ne3 {[%clk 0:01:33.8]} 21.
Bxe3 {[%clk 0:02:06.1]} 21... dxe3 {[%clk 0:01:34.7]} 22. Qxe3 {[%clk
0:02:06.2]} 22... Nd4 {[%clk 0:01:35.4]} 23. Kf2 {[%clk 0:01:57.8]} 23... Bd7
{[%clk 0:01:20]} 24. h7 {[%clk 0:01:00.9]} 24... f5 {[%clk 0:01:19.4]} 25. Qg5
{[%clk 0:00:56.2]} 25... Qe5 {[%clk 0:00:59.3]} 26. Qf6 {[%clk 0:00:37.2]} 26...
Qxf6 {[%clk 0:00:32.2]} 27. Nxf6 {[%clk 0:00:36.5]} 27... Rxe2+ {[%clk
0:00:32.8]} 28. Kf1 {[%clk 0:00:35.2]} 28... Rxg2 {[%clk 0:00:26.3]} 29. h8=Q
{[%clk 0:00:27.3]} 29... Bc6 {[%clk 0:00:20.6]} 30. Nd5 {[%clk 0:00:24.8]} 30...
Rxa2 {[%clk 0:00:15.1]} 31. Qe5 {[%clk 0:00:18.7]} 31... Bxd5 {[%clk 0:00:14.7]}
32. cxd5 {[%clk 0:00:19.5]} 32... Nf3 {[%clk 0:00:14.7]} 33. Qe6+ {[%clk
0:00:17.6]} 33... Kb8 {[%clk 0:00:13]} 34. Rd1 {[%clk 0:00:15.3]} 34... Ng5
{[%clk 0:00:06.9]} 35. Qe5+ {[%clk 0:00:14.3]} 35... Ka8 {[%clk 0:00:07.2]} 36.
Rh8 {[%clk 0:00:12.7]} 1-0

[Event "Late-Titled-Tuesday-Blitz-January-30-2024"]
[Site "Chess.com"]
[Date "2024.01.30"]
[Round "2"]
[White "KaydenTroffChess"]
[Black "Russian_berezka"]
[Result "1-0"]
[WhiteElo "2851"]
[BlackElo "2568"]
[TimeControl "180+1"]
[EndTime "14:17:50 PST"]
[Termination "KaydenTroffChess won by resignation"]

1. d4 {[%clk 0:03:00.9]} 1... g6 {[%clk 0:02:59.2]} 2. Nf3 {[%clk 0:03:01.2]}
2... Bg7 {[%clk 0:02:59.3]} 3. Bg5 {[%clk 0:02:59.2]} 3... c5 {[%clk 0:02:57.4]}
4. e3 {[%clk 0:02:58.7]} 4... cxd4 {[%clk 0:02:57]} 5. exd4 {[%clk 0:02:59.6]}
5... d5 {[%clk 0:02:55.7]} 6. Nbd2 {[%clk 0:02:57.4]} 6... Nc6 {[%clk
0:02:55.6]} 7. c3 {[%clk 0:02:57.4]} 7... Nf6 {[%clk 0:02:54.3]} 8. Bd3 {[%clk
0:02:56.7]} 8... O-O {[%clk 0:02:53.6]} 9. O-O {[%clk 0:02:55.3]} 9... Bg4
{[%clk 0:02:52.5]} 10. Re1 {[%clk 0:02:54.1]} 10... h6 {[%clk 0:02:48.2]} 11.
Bh4 {[%clk 0:02:49.9]} 11... Qd7 {[%clk 0:02:29.4]} 12. h3 {[%clk 0:02:46.8]}
12... Bf5 {[%clk 0:02:28.9]} 13. Qc2 {[%clk 0:02:43.7]} 13... Bxd3 {[%clk
0:02:25.5]} 14. Qxd3 {[%clk 0:02:44.6]} 14... Qf5 {[%clk 0:02:25.5]} 15. Qxf5
{[%clk 0:02:21.5]} 15... gxf5 {[%clk 0:02:26.4]} 16. Ne5 {[%clk 0:02:22.1]}
16... Rfc8 {[%clk 0:02:12.2]} 17. Nxc6 {[%clk 0:02:19]} 17... bxc6 {[%clk
0:02:08]} 18. Rxe7 {[%clk 0:02:18.3]} 18... Ne4 {[%clk 0:02:08.6]} 19. Nb3
{[%clk 0:01:40.4]} 19... a5 {[%clk 0:02:03.3]} 20. f3 {[%clk 0:01:36.5]} 20...
a4 {[%clk 0:02:02.2]} 21. fxe4 {[%clk 0:01:20.9]} 21... axb3 {[%clk 0:02:01.7]}
22. exd5 {[%clk 0:01:20.4]} 22... cxd5 {[%clk 0:01:20.6]} 23. a3 {[%clk
0:01:12.3]} 23... Re8 {[%clk 0:01:13.3]} 24. Rae1 {[%clk 0:01:08.9]} 24... Kf8
{[%clk 0:01:00.3]} 25. Kf2 {[%clk 0:01:01.3]} 25... h5 {[%clk 0:00:54.9]} 26.
Rb7 {[%clk 0:00:50.4]} 26... Rxe1 {[%clk 0:00:31.2]} 27. Kxe1 {[%clk 0:00:51.3]}
27... Re8+ {[%clk 0:00:27.7]} 28. Kf1 {[%clk 0:00:51.3]} 28... Bh6 {[%clk
0:00:26.3]} 29. Rxb3 {[%clk 0:00:44.3]} 29... Re4 {[%clk 0:00:26.2]} 30. Bf6
{[%clk 0:00:43.9]} 30... Kg8 {[%clk 0:00:26]} 31. Rb8+ {[%clk 0:00:40.9]} 31...
Kh7 {[%clk 0:00:25.7]} 32. a4 {[%clk 0:00:40.6]} 32... Bd2 {[%clk 0:00:24.1]}
33. a5 {[%clk 0:00:37.5]} 33... Be1 {[%clk 0:00:23.3]} 34. g3 {[%clk 0:00:16.5]}
34... Bxg3 {[%clk 0:00:22]} 35. Rh8+ {[%clk 0:00:14.4]} 35... Kg6 {[%clk
0:00:22.5]} 36. Rg8+ {[%clk 0:00:15]} 36... Kxf6 {[%clk 0:00:23.2]} 37. Rxg3
{[%clk 0:00:15.9]} 37... f4 {[%clk 0:00:20.5]} 38. Rg2 {[%clk 0:00:15.1]} 38...
Re6 {[%clk 0:00:20.6]} 39. b4 {[%clk 0:00:14.9]} 39... Kf5 {[%clk 0:00:20.5]}
40. Ra2 {[%clk 0:00:15]} 40... f3 {[%clk 0:00:11.8]} 41. a6 {[%clk 0:00:15.2]}
41... Kf4 {[%clk 0:00:08.8]} 42. a7 {[%clk 0:00:15.2]} 42... Kg3 {[%clk
0:00:07.2]} 43. a8=Q {[%clk 0:00:15.3]} 43... f5 {[%clk 0:00:06.2]} 44. Qg8+
{[%clk 0:00:15.2]} 44... Kf4 {[%clk 0:00:06.3]} 45. Qxe6 {[%clk 0:00:15.3]} 1-0

[Event "Late-Titled-Tuesday-Blitz-January-30-2024"]
[Site "Chess.com"]
[Date "2024.01.30"]
[Round "2"]
[White "Mikhail_Bryakin"]
[Black "arenal72"]
[Result "1-0"]
[WhiteElo "2821"]
[BlackElo "2559"]
[TimeControl "180+1"]
[EndTime "14:17:51 PST"]
[Termination "Mikhail_Bryakin won by resignation"]

1. e4 {[%clk 0:02:59.9]} 1... Nc6 {[%clk 0:02:55.1]} 2. Nf3 {[%clk 0:02:58.6]}
2... d6 {[%clk 0:02:54.8]} 3. d4 {[%clk 0:02:56.6]} 3... Nf6 {[%clk 0:02:54.8]}
4. Nc3 {[%clk 0:02:55.2]} 4... g6 {[%clk 0:02:55.4]} 5. h3 {[%clk 0:02:54.3]}
5... Bg7 {[%clk 0:02:55.6]} 6. Be2 {[%clk 0:02:54.9]} 6... O-O {[%clk
0:02:55.4]} 7. O-O {[%clk 0:02:55.4]} 7... e5 {[%clk 0:02:56.1]} 8. dxe5 {[%clk
0:02:54.7]} 8... Nxe5 {[%clk 0:02:55.7]} 9. Bf4 {[%clk 0:02:53.3]} 9... Nxf3+
{[%clk 0:02:41.9]} 10. Bxf3 {[%clk 0:02:54.2]} 10... Qe7 {[%clk 0:02:40.4]} 11.
Re1 {[%clk 0:02:54]} 11... Be6 {[%clk 0:02:34.1]} 12. Qd2 {[%clk 0:02:51.9]}
12... Nd7 {[%clk 0:02:19.8]} 13. Rad1 {[%clk 0:02:49.4]} 13... Rfe8 {[%clk
0:02:14.2]} 14. Nd5 {[%clk 0:02:44.3]} 14... Bxd5 {[%clk 0:02:12.3]} 15. exd5
{[%clk 0:02:45.2]} 15... Qf6 {[%clk 0:02:07.6]} 16. c3 {[%clk 0:02:44.6]} 16...
Ne5 {[%clk 0:02:01.5]} 17. Be2 {[%clk 0:02:44.6]} 17... a6 {[%clk 0:01:37.8]}
18. a4 {[%clk 0:02:41.1]} 18... Qf5 {[%clk 0:01:27.6]} 19. Bg3 {[%clk 0:02:23]}
19... h5 {[%clk 0:01:25.2]} 20. Qf4 {[%clk 0:02:17.5]} 20... Qxf4 {[%clk
0:01:23.7]} 21. Bxf4 {[%clk 0:02:18.4]} 21... Nd7 {[%clk 0:01:23.2]} 22. a5
{[%clk 0:02:07.6]} 22... Re4 {[%clk 0:01:14.2]} 23. Be3 {[%clk 0:02:00.6]} 23...
Rae8 {[%clk 0:01:11.8]} 24. Bd3 {[%clk 0:01:53.1]} 24... R4e7 {[%clk 0:01:03.1]}
25. Bd2 {[%clk 0:01:22.8]} 25... Rxe1+ {[%clk 0:01:01.1]} 26. Rxe1 {[%clk
0:01:23.7]} 26... Rxe1+ {[%clk 0:01:01.2]} 27. Bxe1 {[%clk 0:01:24.5]} 27... f5
{[%clk 0:00:59.1]} 28. b4 {[%clk 0:01:23.3]} 28... Kf7 {[%clk 0:00:47.4]} 29.
Kf1 {[%clk 0:01:20.7]} 29... Nf6 {[%clk 0:00:34.2]} 30. Bc4 {[%clk 0:01:14.5]}
30... Ke7 {[%clk 0:00:32.4]} 31. f3 {[%clk 0:01:12.2]} 31... Kd7 {[%clk
0:00:30.3]} 32. Ke2 {[%clk 0:01:11.9]} 32... Kc8 {[%clk 0:00:22.2]} 33. Bb3
{[%clk 0:01:11.4]} 33... Nd7 {[%clk 0:00:22.1]} 34. Kd3 {[%clk 0:01:09.1]} 34...
Ne5+ {[%clk 0:00:20.3]} 35. Kc2 {[%clk 0:01:09.6]} 35... Bh6 {[%clk 0:00:19.8]}
36. c4 {[%clk 0:01:07.7]} 36... Be3 {[%clk 0:00:19.9]} 37. Bc3 {[%clk
0:01:07.8]} 37... Kd7 {[%clk 0:00:18]} 38. c5 {[%clk 0:01:07.3]} 38... Nf7
{[%clk 0:00:14.9]} 39. Ba4+ {[%clk 0:01:04.4]} 39... Kc8 {[%clk 0:00:12.4]} 40.
c6 {[%clk 0:01:04.7]} 40... Nd8 {[%clk 0:00:11.5]} 41. cxb7+ {[%clk 0:01:00.5]}
41... Kxb7 {[%clk 0:00:12.4]} 42. Be8 {[%clk 0:00:59]} 42... g5 {[%clk 0:00:09]}
43. Bxh5 {[%clk 0:00:57.4]} 43... c6 {[%clk 0:00:08.3]} 44. Kd3 {[%clk
0:00:55.8]} 44... Bf4 {[%clk 0:00:06.6]} 45. Kc4 {[%clk 0:00:54.8]} 45... cxd5+
{[%clk 0:00:04.2]} 46. Kxd5 {[%clk 0:00:55.7]} 46... Nc6 {[%clk 0:00:04.8]} 47.
Be8 {[%clk 0:00:47.9]} 47... Ne5 {[%clk 0:00:03.5]} 48. b5 {[%clk 0:00:45]}
48... axb5 {[%clk 0:00:03.2]} 49. Bxb5 {[%clk 0:00:45.9]} 49... Ng6 {[%clk
0:00:03.1]} 50. a6+ {[%clk 0:00:45]} 50... Ka7 {[%clk 0:00:02.5]} 51. Bd4+
{[%clk 0:00:45.2]} 51... Kb8 {[%clk 0:00:02.9]} 52. a7+ {[%clk 0:00:44.2]} 1-0

[Event "Late-Titled-Tuesday-Blitz-January-30-2024"]
[Site "Chess.com"]
[Date "2024.01.30"]
[Round "2"]
[White "TanitoluwaAps116"]
[Black "cristiano78"]
[Result "1-0"]
[WhiteElo "2705"]
[BlackElo "2305"]
[TimeControl "180+1"]
[EndTime "14:17:51 PST"]
[Termination "TanitoluwaAps116 won by resignation"]

1. e4 {[%clk 0:02:56]} 1... c5 {[%clk 0:02:59.3]} 2. Nf3 {[%clk 0:02:56.2]} 2...
d6 {[%clk 0:02:59.5]} 3. Bb5+ {[%clk 0:02:56.3]} 3... Bd7 {[%clk 0:02:58.5]} 4.
Bxd7+ {[%clk 0:02:56.3]} 4... Qxd7 {[%clk 0:02:59.4]} 5. O-O {[%clk 0:02:55.5]}
5... Nc6 {[%clk 0:02:59.4]} 6. c3 {[%clk 0:02:55.4]} 6... e5 {[%clk 0:02:58.3]}
7. d4 {[%clk 0:02:55.5]} 7... Nf6 {[%clk 0:02:57.2]} 8. dxe5 {[%clk 0:02:54.5]}
8... dxe5 {[%clk 0:02:56.2]} 9. Qe2 {[%clk 0:02:55.1]} 9... Be7 {[%clk
0:02:54.6]} 10. Bg5 {[%clk 0:02:55.3]} 10... h6 {[%clk 0:02:53.8]} 11. Rd1
{[%clk 0:02:54.7]} 11... Qc7 {[%clk 0:02:53.5]} 12. Bxf6 {[%clk 0:02:54.9]}
12... Bxf6 {[%clk 0:02:52.1]} 13. Na3 {[%clk 0:02:55.5]} 13... a6 {[%clk
0:02:50.3]} 14. Nc4 {[%clk 0:02:55.9]} 14... O-O {[%clk 0:02:48.6]} 15. Ne3
{[%clk 0:02:52.3]} 15... Ne7 {[%clk 0:02:47.9]} 16. Nd5 {[%clk 0:02:46.7]} 16...
Nxd5 {[%clk 0:02:47.4]} 17. Rxd5 {[%clk 0:02:47.6]} 17... Rad8 {[%clk
0:02:44.2]} 18. Rad1 {[%clk 0:02:48.2]} 18... Rxd5 {[%clk 0:02:42.6]} 19. Rxd5
{[%clk 0:02:49.1]} 19... Rd8 {[%clk 0:02:41.2]} 20. Rxd8+ {[%clk 0:02:47.5]}
20... Qxd8 {[%clk 0:02:40.4]} 21. Qd2 {[%clk 0:02:47.8]} 21... Qxd2 {[%clk
0:02:37.7]} 22. Nxd2 {[%clk 0:02:48.7]} 22... b5 {[%clk 0:02:33.8]} 23. Nb3
{[%clk 0:02:47.2]} 23... Be7 {[%clk 0:02:33.6]} 24. c4 {[%clk 0:02:37.6]} 24...
b4 {[%clk 0:02:31.3]} 25. f3 {[%clk 0:02:32.6]} 25... g6 {[%clk 0:02:30.3]} 26.
Kf2 {[%clk 0:02:33]} 26... f5 {[%clk 0:02:29.6]} 27. Ke3 {[%clk 0:02:32.1]}
27... Kf7 {[%clk 0:02:27.9]} 28. Kd3 {[%clk 0:02:24.6]} 28... Ke6 {[%clk
0:02:27]} 29. Na5 {[%clk 0:02:22.2]} 29... Kd7 {[%clk 0:02:22.4]} 30. Kc2 {[%clk
0:02:19]} 30... Bd8 {[%clk 0:02:18]} 31. Nb3 {[%clk 0:02:17.6]} 31... Kc6 {[%clk
0:02:14.8]} 32. Nc1 {[%clk 0:02:16.4]} 32... a5 {[%clk 0:02:08.4]} 33. Kb3
{[%clk 0:02:16.5]} 33... Kb6 {[%clk 0:02:00.1]} 34. Ka4 {[%clk 0:02:15.4]} 34...
Bg5 {[%clk 0:01:39.7]} 35. Nb3 {[%clk 0:02:09.5]} 35... Be3 {[%clk 0:01:30.3]}
36. Nxa5 {[%clk 0:01:47.3]} 36... Bc1 {[%clk 0:01:27.8]} 37. Nb3 {[%clk
0:01:35.4]} 37... Bxb2 {[%clk 0:01:26.4]} 38. g4 {[%clk 0:01:30]} 38... fxe4
{[%clk 0:01:12.7]} 39. fxe4 {[%clk 0:01:28.7]} 39... h5 {[%clk 0:00:58.2]} 40.
h3 {[%clk 0:01:23.7]} 40... hxg4 {[%clk 0:00:57.3]} 41. hxg4 {[%clk 0:01:24]}
41... Bc3 {[%clk 0:00:56.5]} 42. Nc1 {[%clk 0:01:21.3]} 42... Bd2 {[%clk
0:00:52.1]} 43. Nd3 {[%clk 0:01:20.1]} 43... Bf4 {[%clk 0:00:48.2]} 44. Kb3
{[%clk 0:01:16.3]} 44... Kc6 {[%clk 0:00:44.2]} 45. Ka4 {[%clk 0:01:15.4]} 45...
g5 {[%clk 0:00:39.3]} 46. Ka5 {[%clk 0:01:12.7]} 46... Bh2 {[%clk 0:00:35.5]}
47. Ka6 {[%clk 0:01:10.8]} 47... Bg3 {[%clk 0:00:30.1]} 48. Ka7 {[%clk
0:01:09.2]} 48... Bf4 {[%clk 0:00:22.8]} 49. Kb8 {[%clk 0:01:07.8]} 49... Kd6
{[%clk 0:00:16.2]} 50. Kb7 {[%clk 0:01:07.7]} 50... Be3 {[%clk 0:00:14.2]} 51.
Kb6 {[%clk 0:01:07.4]} 51... Bd4 {[%clk 0:00:14.3]} 52. Ne1 {[%clk 0:01:02.1]}
52... Be3 {[%clk 0:00:13.6]} 53. Kb5 {[%clk 0:01:00.3]} 53... Bf4 {[%clk
0:00:12.4]} 54. Nf3 {[%clk 0:00:57.8]} 54... Be3 {[%clk 0:00:11.2]} 55. Ne1
{[%clk 0:00:54.7]} 55... Bf4 {[%clk 0:00:11.1]} 56. Nc2 {[%clk 0:00:53.3]} 56...
Bd2 {[%clk 0:00:10.9]} 57. Na1 {[%clk 0:00:52.8]} 57... Bc3 {[%clk 0:00:10.9]}
58. Nb3 {[%clk 0:00:53.7]} 58... Bd4 {[%clk 0:00:11]} 59. Na5 {[%clk 0:00:53.7]}
59... Be3 {[%clk 0:00:10.6]} 60. Nb7+ {[%clk 0:00:53.8]} 60... Ke6 {[%clk
0:00:10.4]} 61. Nxc5+ {[%clk 0:00:54.4]} 61... Kf6 {[%clk 0:00:08.2]} 62. Nd3
{[%clk 0:00:54.4]} 62... Bd4 {[%clk 0:00:08.2]} 63. Nxb4 {[%clk 0:00:54.5]} 1-0

[Event "Late-Titled-Tuesday-Blitz-January-30-2024"]
[Site "Chess.com"]
[Date "2024.01.30"]
[Round "2"]
[White "kikoveiga"]
[Black "Nemsko"]
[Result "0-1"]
[WhiteElo "2529"]
[BlackElo "2360"]
[TimeControl "180+1"]
[EndTime "14:17:56 PST"]
[Termination "Nemsko won by resignation"]

1. c4 {[%clk 0:03:00.9]} 1... e5 {[%clk 0:02:58.3]} 2. a3 {[%clk 0:02:57.5]}
2... Nf6 {[%clk 0:02:57.8]} 3. Nc3 {[%clk 0:02:44.5]} 3... d5 {[%clk 0:02:57.9]}
4. cxd5 {[%clk 0:02:45.4]} 4... Nxd5 {[%clk 0:02:58.5]} 5. Nf3 {[%clk
0:02:46.2]} 5... Nc6 {[%clk 0:02:58.7]} 6. Qc2 {[%clk 0:02:46]} 6... Be6 {[%clk
0:02:58.6]} 7. e4 {[%clk 0:02:39.1]} 7... Nb6 {[%clk 0:02:55.8]} 8. Bb5 {[%clk
0:02:38.7]} 8... Bd6 {[%clk 0:02:55.4]} 9. d4 {[%clk 0:02:32.2]} 9... exd4
{[%clk 0:02:54.5]} 10. Nxd4 {[%clk 0:01:58.7]} 10... Bd7 {[%clk 0:02:46.1]} 11.
Be3 {[%clk 0:01:53.4]} 11... Nxd4 {[%clk 0:02:43.8]} 12. Bxd4 {[%clk 0:01:54.3]}
12... O-O {[%clk 0:02:43.3]} 13. Bd3 {[%clk 0:01:46.6]} 13... g6 {[%clk
0:02:36.6]} 14. h4 {[%clk 0:01:43.2]} 14... c5 {[%clk 0:02:32.5]} 15. Be3 {[%clk
0:01:41.5]} 15... Re8 {[%clk 0:02:17.4]} 16. O-O-O {[%clk 0:01:19.4]} 16... Qe7
{[%clk 0:02:13.2]} 17. h5 {[%clk 0:01:11.7]} 17... Be6 {[%clk 0:01:50.8]} 18.
Kb1 {[%clk 0:01:03.7]} 18... Be5 {[%clk 0:01:36.5]} 19. f4 {[%clk 0:01:02.4]}
19... Bg7 {[%clk 0:01:24.8]} 20. f5 {[%clk 0:00:57.8]} 20... gxf5 {[%clk
0:01:23.9]} 21. exf5 {[%clk 0:00:58.2]} 21... Ba2+ {[%clk 0:01:21.9]} 22. Kxa2
{[%clk 0:00:52.6]} 22... Qxe3 {[%clk 0:01:22.2]} 23. h6 {[%clk 0:00:46.5]} 23...
Bf6 {[%clk 0:01:02.2]} 24. Ne4 {[%clk 0:00:45.1]} 24... Qd4 {[%clk 0:00:48.4]}
25. Nxf6+ {[%clk 0:00:27.5]} 25... Qxf6 {[%clk 0:00:49.3]} 26. g4 {[%clk
0:00:20.8]} 26... c4 {[%clk 0:00:43.3]} 27. Be4 {[%clk 0:00:19.6]} 27... Qe5
{[%clk 0:00:37.3]} 28. Rde1 {[%clk 0:00:18.9]} 28... c3 {[%clk 0:00:33.2]} 29.
f6 {[%clk 0:00:14.1]} 29... Qxf6 {[%clk 0:00:32.5]} 30. Bxh7+ {[%clk 0:00:14.1]}
30... Kh8 {[%clk 0:00:33.1]} 31. g5 {[%clk 0:00:13.3]} 31... Qd4 {[%clk
0:00:30.1]} 32. Be4 {[%clk 0:00:08.7]} 32... Na4 {[%clk 0:00:25.3]} 33. b3
{[%clk 0:00:08]} 33... Nc5 {[%clk 0:00:21.7]} 34. Bf5 {[%clk 0:00:06.3]} 34...
Qd2 {[%clk 0:00:19.7]} 35. Rxe8+ {[%clk 0:00:04.9]} 35... Rxe8 {[%clk 0:00:19]}
36. Rh2 {[%clk 0:00:05.8]} 36... Qd4 {[%clk 0:00:08.1]} 37. Rh3 {[%clk
0:00:05.8]} 37... Re3 {[%clk 0:00:06.7]} 38. Rxe3 {[%clk 0:00:05.1]} 38... Qxe3
{[%clk 0:00:07.6]} 39. g6 {[%clk 0:00:05.6]} 39... fxg6 {[%clk 0:00:07.4]} 40.
Bxg6 {[%clk 0:00:06.5]} 40... Qd2 {[%clk 0:00:04.3]} 41. b4 {[%clk 0:00:06.6]}
41... Ne6 {[%clk 0:00:03.4]} 42. Kb3 {[%clk 0:00:06.9]} 42... Nd4+ {[%clk
0:00:02.6]} 43. Kc4 {[%clk 0:00:07.8]} 43... Nxc2 {[%clk 0:00:02.9]} 44. Bxc2
{[%clk 0:00:08.3]} 44... Qxc2 {[%clk 0:00:03.8]} 0-1